bitfinex/quotes_BTCUSD_20220307
["timestamp","ask_amount","ask_price","bid_price","bid_amount"]
[1646624453744,0.389939,37914.0,37913.0,0.18649312]
[1646624453946,0.005,37915.0,37913.0,0.18649312]
[1646624454348,0.005,37915.0,37914.0,0.389939]
[1646624454753,0.00011076,37917.0,37914.0,0.389939]
[1646624454949,0.00011076,37917.0,37915.0,0.539939]
[1646624455144,0.00011076,37917.0,37915.0,0.15]
[1646624455345,0.21444208,37917.0,37915.0,0.15]
[1646624455547,0.21944208,37917.0,37915.0,0.15]
[1646624455747,0.21944208,37917.0,37913.0,0.33639546]
[1646624455947,0.21944208,37917.0,37914.0,9.772e-05]
[1646624456346,0.21933132,37917.0,37914.0,0.00033609]
[1646624457085,0.21933132,37917.0,37914.0,0.00023837]
[1646624457291,0.21933132,37917.0,37914.0,0.00033609]
[1646624457292,0.21433132,37917.0,37914.0,0.00033609]
[1646624457485,0.21833132,37917.0,37914.0,0.00033609]
[1646624458086,0.22889732,37917.0,37914.0,0.00033609]
[1646624458288,0.22889732,37917.0,37914.0,0.00023837]
[1646624458486,0.21833132,37917.0,37914.0,0.00033608]
[1646624458687,0.21433132,37917.0,37914.0,0.00033608]
[1646624459388,0.21433132,37917.0,37914.0,0.00023837]
[1646624459588,0.21433132,37917.0,37914.0,0.00033608]
[1646624460590,0.21433132,37917.0,37914.0,0.00023837]
[1646624460835,0.21433132,37917.0,37914.0,0.00033608]
[1646624461137,0.689939,37916.0,37914.0,0.00033608]
[1646624461335,0.3,37916.0,37914.0,0.00033608]
[1646624461535,0.22044208,37917.0,37916.0,0.00023816]
[1646624462135,0.62094808,37917.0,37916.0,0.00023816]
[1646624462340,0.23100908,37917.0,37916.0,0.00023816]
[1646624462737,0.62094808,37917.0,37916.0,0.00023816]
[1646624463838,0.92094808,37917.0,37916.0,0.00023816]
[1646624464039,0.53100908,37917.0,37916.0,0.00023816]
[1646624464688,0.52500908,37917.0,37916.0,0.00023816]
[1646624464889,0.91494808,37917.0,37916.0,0.00023816]
[1646624465587,0.91485607,37917.0,37916.0,0.00023816]
[1646624466388,0.389939,37916.0,37915.0,0.01090286]
[1646624466588,0.689939,37916.0,37915.0,0.01080516]
[1646624466789,0.689939,37916.0,37915.0,0.01090286]
[1646624467591,1.57463971,37916.0,37915.0,0.01090286]
[1646624467790,1.67463971,37916.0,37915.0,0.01080516]
[1646624468436,1.15,37915.0,37914.0,7.71e-06]
[1646624468740,1.15,37915.0,37897.0,0.31772648]
[1646624468741,0.45529935,37908.0,37897.0,0.22511589]
[1646624468937,0.389939,37906.0,37896.0,0.21193589]
[1646624469137,0.389939,37904.0,37895.0,0.21193589]
[1646624469537,0.48283322,37903.0,37896.0,0.18934804]
[1646624469736,0.389939,37902.0,37896.0,0.18934804]
[1646624469942,0.25469584,37904.0,37896.0,0.18934804]
[1646624469943,0.25469584,37904.0,37902.0,0.06027979]
[1646624470138,0.3,37906.0,37902.0,0.06027979]
[1646624470337,0.36600933,37906.0,37902.0,0.06027979]
[1646624470938,0.16466565,37912.0,37905.0,0.15413558]
[1646624471138,0.1,37913.0,37905.0,0.15413558]
[1646624471341,0.01318,37912.0,37906.0,0.3]
[1646624471538,0.010567,37917.0,37908.0,0.15]
[1646624472192,0.20236384,37916.0,37910.0,0.20509474]
[1646624472394,0.20236384,37916.0,37912.0,0.16642068]
[1646624472593,0.010567,37917.0,37912.0,0.16642068]
[1646624472789,0.010567,37917.0,37912.0,0.15]
[1646624472991,0.010567,37917.0,37911.0,0.00011946]
[1646624473690,0.014567,37917.0,37911.0,0.00011946]
[1646624473888,0.014567,37917.0,37910.0,0.2176204]
[1646624474090,0.014567,37917.0,37912.0,0.00011945]
[1646624474691,0.010567,37917.0,37912.0,0.00011945]
[1646624475094,0.010567,37917.0,37908.0,0.15]
[1646624475293,0.010567,37917.0,37913.0,0.00011945]
[1646624475493,0.013567,37917.0,37913.0,0.00011945]
[1646624476139,0.013567,37917.0,37908.0,0.15]
[1646624476338,0.23874642,37916.0,37914.0,0.00023106]
[1646624476637,0.3,37915.0,37914.0,0.00023106]
[1646624476837,1.120667,37917.0,37914.0,0.00023106]
[1646624477038,0.8101,37916.0,37914.0,0.00023106]
[1646624477240,1.16036411,37915.0,37914.0,0.00023106]
[1646624477438,1.31326411,37915.0,37914.0,0.00023106]
[1646624477640,1.41326411,37915.0,37914.0,0.00023106]
[1646624477838,1.41326411,37915.0,37902.0,0.06027979]
[1646624477839,0.1802682,37905.0,37902.0,0.06027979]
[1646624479440,0.3,37904.0,37902.0,0.06027979]
[1646624479686,0.004,37905.0,37902.0,0.06017393]
[1646624480786,0.16001972,37906.0,37902.0,0.06017393]
[1646624481184,0.3,37905.0,37902.0,0.06017393]
[1646624481585,0.16001972,37906.0,37902.0,0.06017393]
[1646624482384,0.16001972,37906.0,37902.0,0.06027579]
[1646624483186,0.06600247,37908.0,37902.0,0.06027579]
[1646624483444,0.06600247,37908.0,37902.0,0.06017393]
[1646624483643,0.06600247,37908.0,37902.0,0.06027579]
[1646624484042,0.1,37910.0,37902.0,0.06027579]
[1646624484245,0.1,37910.0,37904.0,0.18479746]
[1646624484443,0.13997915,37911.0,37904.0,0.18479746]
[1646624484642,0.22619529,37912.0,37904.0,0.18479746]
[1646624484844,0.1,37915.0,37908.0,0.20230632]
[1646624485044,0.22491882,37917.0,37908.0,0.20230632]
[1646624485245,0.22491882,37917.0,37909.0,0.15]
[1646624485246,0.010567,37917.0,37909.0,0.15]
[1646624485947,0.010567,37917.0,37913.0,0.15]
[1646624485948,0.20266138,37917.0,37913.0,0.15]
[1646624486144,0.20266138,37917.0,37911.0,0.00010184]
[1646624486545,0.0659814,37916.0,37911.0,0.00010184]
[1646624487192,0.0659814,37916.0,37911.0,9.627e-05]
[1646624487392,0.20266138,37917.0,37912.0,0.15]
[1646624487592,0.21383752,37917.0,37912.0,0.15]
[1646624487994,0.21383752,37917.0,37911.0,9.627e-05]
[1646624488591,0.01591394,37916.0,37911.0,9.627e-05]
[1646624488791,0.01084615,37915.0,37911.0,9.627e-05]
[1646624488992,0.20266138,37917.0,37911.0,9.627e-05]
[1646624489392,0.01259683,37916.0,37906.0,0.2180944]
[1646624489594,0.26864133,37917.0,37911.0,9.627e-05]
[1646624489595,0.01469081,37915.0,37911.0,9.627e-05]
[1646624489792,0.01231301,37915.0,37911.0,9.627e-05]
[1646624489993,0.0147747,37916.0,37911.0,9.627e-05]
[1646624490193,0.01559847,37915.0,37911.0,9.627e-05]
[1646624490393,0.26864133,37917.0,37911.0,9.627e-05]
[1646624490596,0.28025747,37917.0,37909.0,0.15]
[1646624490836,0.28025747,37917.0,37906.0,0.2180944]
[1646624490837,0.28025747,37917.0,37911.0,9.753e-05]
[1646624491735,0.28336248,37917.0,37914.0,0.00021951]
[1646624492538,0.3,37916.0,37914.0,0.00021951]
[1646624494243,0.00063827,37915.0,37914.0,0.00021951]
[1646624495991,0.20063827,37915.0,37914.0,0.00021951]
[1646624496391,0.20063827,37915.0,37911.0,0.00031665]
[1646624496591,0.20063827,37915.0,37911.0,0.00021941]
[1646624496791,0.20063827,37915.0,37911.0,0.00031665]
[1646624497793,0.20063827,37915.0,37911.0,0.00021941]
[1646624497991,0.3,37914.0,37911.0,0.00021941]
[1646624498192,0.3,37914.0,37911.0,0.00031672]
[1646624498441,0.00063827,37913.0,37911.0,0.00031672]
[1646624498737,0.00063827,37913.0,37912.0,0.18642028]
[1646624500340,0.00063827,37913.0,37912.0,0.33642028]
[1646624500539,0.00063827,37913.0,37912.0,0.63642028]
[1646624500739,0.00063827,37913.0,37912.0,0.33642028]
[1646624501539,0.2,37915.0,37912.0,0.33642028]
[1646624501839,0.00063827,37914.0,37913.0,0.00021961]
[1646624502095,0.00063827,37914.0,37913.0,0.15021961]
[1646624502296,0.00056232,37914.0,37913.0,0.15021961]
[1646624502899,0.00056232,37914.0,37913.0,0.04951769]
[1646624503700,0.00356232,37914.0,37913.0,0.04951769]
[1646624504508,0.00356232,37914.0,37913.0,0.81902369]
[1646624504705,0.20011448,37915.0,37914.0,0.00101216]
[1646624504899,0.20011448,37915.0,37914.0,0.05391216]
[1646624505701,0.20011448,37915.0,37914.0,0.09804555]
[1646624505941,0.20011448,37915.0,37914.0,0.39804555]
[1646624506643,0.20011448,37915.0,37914.0,0.42457555]
[1646624507045,0.20011448,37915.0,37914.0,0.32780888]
[1646624507445,0.40011448,37915.0,37914.0,0.30127888]
[1646624507645,0.40111448,37915.0,37914.0,0.30127888]
[1646624508044,0.40111448,37915.0,37914.0,0.05391216]
[1646624509046,0.40011448,37915.0,37914.0,0.05391216]
[1646624509695,0.40311448,37915.0,37914.0,0.05391216]
[1646624510898,0.40011448,37915.0,37914.0,0.05391216]
[1646624511698,0.40211448,37915.0,37914.0,0.05412069]
[1646624511896,0.60211448,37915.0,37914.0,0.05412069]
[1646624512895,0.60211448,37915.0,37914.0,0.00122069]
[1646624513097,0.60011448,37915.0,37914.0,0.00122069]
[1646624513550,0.60011448,37915.0,37914.0,0.39129669]
[1646624513752,0.60011448,37915.0,37914.0,0.00122069]
[1646624514548,0.60011448,37915.0,37914.0,0.39129669]
[1646624514951,0.60011448,37915.0,37914.0,0.00122069]
[1646624517791,0.60411448,37915.0,37914.0,0.00122069]
[1646624518994,0.60011448,37915.0,37914.0,0.00122069]
[1646624519797,0.60411448,37915.0,37914.0,0.00122069]
[1646624520195,0.90411448,37915.0,37914.0,0.00122069]
[1646624521043,0.90011448,37915.0,37914.0,0.00122069]
[1646624521543,0.96609688,37915.0,37914.0,0.00122069]
[1646624523444,0.90011448,37915.0,37914.0,0.00122069]
[1646624523643,0.60011448,37915.0,37914.0,0.00122069]
[1646624525792,0.90011448,37915.0,37914.0,0.00122069]
[1646624526292,0.96609584,37915.0,37914.0,0.00122069]
[1646624528092,0.90011448,37915.0,37914.0,0.00122069]
[1646624531841,0.90611448,37915.0,37914.0,0.00122069]
[1646624532393,0.60611448,37915.0,37914.0,0.00122069]
[1646624532989,0.60011448,37915.0,37914.0,0.00122069]
[1646624535495,0.60011448,37915.0,37914.0,0.67827057]
[1646624535692,0.60011448,37915.0,37914.0,0.86913834]
[1646624536745,0.60001332,37915.0,37914.0,1.25921434]
[1646624537142,0.010567,37917.0,37915.0,1.01703003]
[1646624537347,0.010567,37917.0,37916.0,0.04951769]
[1646624539347,0.010567,37917.0,37916.0,0.49249369]
[1646624539599,0.010567,37917.0,37916.0,0.34088358]
[1646624539997,0.21435182,37928.0,37916.0,0.59088358]
[1646624540300,0.33974573,37930.0,37924.0,0.27600986]
[1646624540301,0.21435182,37929.0,37924.0,0.27600986]
[1646624540493,0.21435182,37929.0,37928.0,0.04951769]
[1646624540694,0.51435182,37929.0,37928.0,0.04951769]
[1646624541694,0.316564,37929.0,37923.0,0.46528187]
[1646624541994,0.316564,37929.0,37923.0,0.18036162]
[1646624542195,0.316564,37929.0,37926.0,0.04951769]
[1646624542493,0.01553844,37928.0,37925.0,0.04951769]
[1646624542696,0.3286709,37929.0,37925.0,0.04951769]
[1646624542897,0.3286709,37929.0,37923.0,0.18036162]
[1646624542898,0.53091582,37929.0,37923.0,0.18036162]
[1646624543194,0.52491582,37929.0,37927.0,0.04951769]
[1646624543448,0.22491582,37929.0,37927.0,0.04951769]
[1646624543648,0.010564,37929.0,37927.0,0.04951769]
[1646624545253,0.010564,37929.0,37926.0,0.04951769]
[1646624545455,0.010564,37929.0,37923.0,0.18036162]
[1646624545652,0.010564,37929.0,37926.0,0.04951769]
[1646624545852,0.015564,37929.0,37927.0,0.00021292]
[1646624547096,0.010564,37929.0,37927.0,0.00021292]
[1646624547796,0.014564,37929.0,37927.0,0.00021292]
[1646624547998,0.23532391,37929.0,37927.0,0.00021292]
[1646624548197,0.3,37928.0,37927.0,0.00021292]
[1646624548600,0.51435182,37928.0,37927.0,0.00021292]
[1646624550869,0.06598006,37925.0,37915.0,0.58864772]
[1646624551064,0.51491508,37924.0,37915.0,0.58864772]
[1646624551263,0.52132317,37924.0,37915.0,0.58864772]
[1646624551463,0.1,37922.0,37915.0,0.58864772]
[1646624551662,0.19287951,37918.0,37915.0,0.16654772]
[1646624552863,0.32132317,37924.0,37915.0,0.16654772]
[1646624553265,0.22132317,37924.0,37915.0,0.16654772]
[1646624553662,0.1,37922.0,37915.0,0.16654772]
[1646624553862,0.1,37922.0,37917.0,0.16418085]
[1646624554064,0.57670146,37924.0,37917.0,0.16418085]
[1646624554463,0.16596862,37922.0,37917.0,0.16418085]
[1646624554991,0.06596862,37922.0,37917.0,0.16418085]
[1646624555393,0.3,37921.0,37915.0,0.16654772]
[1646624555592,0.3,37921.0,37917.0,0.0002033]
[1646624556391,0.17691521,37918.0,37917.0,0.0002033]
[1646624556792,0.13196194,37919.0,37917.0,0.0002033]
[1646624557393,0.43196194,37919.0,37917.0,0.0002033]
[1646624557894,0.43596194,37919.0,37917.0,0.0002033]
[1646624558194,0.1968504,37918.0,37917.0,0.0002033]
[1646624558647,0.4968504,37918.0,37917.0,0.0002033]
[1646624559247,0.1968504,37918.0,37917.0,0.0002033]
[1646624559949,0.1998504,37918.0,37917.0,0.0002033]
[1646624561052,0.1968504,37918.0,37915.0,0.11723323]
[1646624561450,0.01067903,37917.0,37915.0,0.11723323]
[1646624562093,0.2008504,37918.0,37915.0,0.11723323]
[1646624562291,0.01536806,37916.0,37915.0,0.11723323]
[1646624563892,0.1707239,37917.0,37915.0,0.11723323]
[1646624565844,0.00012169,37916.0,37915.0,0.11723323]
[1646624566747,0.32581038,37916.0,37914.0,0.67806204]
[1646624566950,1.4442487,37915.0,37914.0,0.67806204]
[1646624567145,1.4971487,37915.0,37914.0,0.67806204]
[1646624567347,1.4971487,37915.0,37914.0,0.28207966]
[1646624567546,1.85800974,37915.0,37914.0,0.28207966]
[1646624567946,0.95,37914.0,37905.0,0.4107]
[1646624568145,0.23165695,37907.0,37905.0,0.4107]
[1646624568362,0.23165695,37907.0,37904.0,0.05]
[1646624568549,0.16565978,37907.0,37902.0,0.12335393]
[1646624569044,0.16565978,37907.0,37903.0,0.04951769]
[1646624569245,0.16565978,37907.0,37903.0,0.04961462]
[1646624569705,0.3,37906.0,37903.0,9.693e-05]
[1646624569902,0.18345555,37907.0,37903.0,9.693e-05]
[1646624570102,0.2949668,37907.0,37903.0,9.693e-05]
[1646624570302,0.2949668,37907.0,37902.0,0.06017393]
[1646624570508,0.5949668,37907.0,37902.0,0.06017393]
[1646624570800,0.27644622,37905.0,37903.0,9.692e-05]
[1646624571002,0.3,37904.0,37903.0,9.692e-05]
[1646624571304,1.26326414,37904.0,37903.0,9.692e-05]
[1646624571508,1.61316414,37904.0,37903.0,9.692e-05]
[1646624571703,1.61316414,37904.0,37902.0,0.06017393]
[1646624571908,1.22896551,37903.0,37902.0,0.06027085]
[1646624572102,0.57176551,37903.0,37902.0,0.06027085]
[1646624572304,0.56910197,37903.0,37902.0,0.06027085]
[1646624572502,0.4529,37903.0,37902.0,0.06027085]
[1646624572707,0.56910044,37903.0,37902.0,0.06027085]
[1646624572904,0.56910044,37903.0,37902.0,0.06017393]
[1646624573945,0.57310044,37903.0,37902.0,0.06017393]
[1646624575143,0.56910044,37903.0,37902.0,0.06017393]
[1646624575845,0.56922155,37903.0,37902.0,0.06036861]
[1646624576650,0.46922155,37903.0,37902.0,0.06036861]
[1646624576849,0.00012111,37903.0,37902.0,0.00019468]
[1646624577104,0.00012111,37903.0,37902.0,0.2072237]
[1646624577311,0.00012111,37903.0,37902.0,0.25674139]
[1646624578105,0.00012111,37903.0,37902.0,0.2072237]
[1646624578606,0.00012111,37903.0,37902.0,0.25674139]
[1646624579210,0.00012111,37903.0,37902.0,0.00019468]
[1646624579607,0.19004261,37907.0,37902.0,0.00019468]
[1646624580308,0.3,37910.0,37903.0,0.17656863]
[1646624580605,0.3,37910.0,37905.0,0.04951769]
[1646624580842,0.06891088,37911.0,37903.0,0.22656863]
[1646624581244,0.06891088,37911.0,37906.0,0.23905054]
[1646624581645,0.06891088,37911.0,37908.0,0.04951769]
[1646624581851,0.00631,37915.0,37909.0,0.21379877]
[1646624582044,0.3,37916.0,37909.0,0.21379877]
[1646624582244,0.3,37916.0,37909.0,0.26379877]
[1646624582446,0.1,37915.0,37909.0,0.31331646]
[1646624582645,0.18960782,37913.0,37911.0,9.69e-05]
[1646624582845,0.3,37916.0,37911.0,9.69e-05]
[1646624583746,0.3,37916.0,37909.0,0.09951769]
[1646624583946,0.18124532,37914.0,37911.0,9.69e-05]
[1646624584896,0.18124532,37914.0,37908.0,0.16914144]
[1646624585095,0.18124532,37914.0,37911.0,9.69e-05]
[1646624585496,0.3,37913.0,37911.0,9.69e-05]
[1646624585796,0.3,37913.0,37912.0,0.00019971]
[1646624586199,0.18424532,37914.0,37912.0,0.00019971]
[1646624586596,0.3,37913.0,37912.0,0.00019971]
[1646624587898,0.303,37913.0,37912.0,0.00019971]
[1646624588101,0.31989784,37913.0,37912.0,0.00019971]
[1646624589265,0.31689784,37913.0,37912.0,0.00019971]
[1646624590059,0.47609784,37913.0,37912.0,0.00019971]
[1646624590961,0.47609784,37913.0,37911.0,0.00019971]
[1646624591162,0.3,37912.0,37911.0,0.00031817]
[1646624591963,0.303,37912.0,37911.0,0.00019971]
[1646624592598,0.003,37912.0,37911.0,0.00019971]
[1646624593002,1.15,37911.0,37904.0,0.10525446]
[1646624593202,0.23004035,37912.0,37904.0,0.10573677]
[1646624593800,0.01689784,37913.0,37909.0,0.1708349]
[1646624594003,0.18135933,37914.0,37909.0,0.1708349]
[1646624594604,0.18135933,37914.0,37910.0,0.00011817]
[1646624595605,0.18135933,37914.0,37905.0,0.04951769]
[1646624595852,0.18135933,37914.0,37911.0,0.00019981]
[1646624596050,0.18635933,37914.0,37911.0,0.00019981]
[1646624596950,0.00511401,37914.0,37911.0,0.00019981]
[1646624597151,0.00511401,37914.0,37911.0,0.00031797]
[1646624597349,0.00011401,37914.0,37911.0,0.00031797]
[1646624597852,0.00011401,37914.0,37912.0,0.21069008]
[1646624598056,0.00011401,37914.0,37913.0,0.04951769]
[1646624598252,0.00011401,37914.0,37913.0,0.34951769]
[1646624598651,0.00011401,37914.0,37913.0,0.52642395]
[1646624598950,0.00011401,37914.0,37913.0,0.19742395]
[1646624599794,0.28371539,37923.0,37913.0,0.94039995]
[1646624599999,0.44061209,37925.0,37921.0,0.02051769]
[1646624600000,0.38690606,37925.0,37921.0,0.02051769]
[1646624600203,0.21482412,37925.0,37921.0,0.02051769]
[1646624600995,0.21482412,37925.0,37922.0,0.065954]
[1646624601398,0.21482412,37926.0,37922.0,0.115954]
[1646624601595,0.21482412,37926.0,37922.0,0.05]
[1646624601998,0.006,37925.0,37922.0,0.05]
[1646624602295,0.22082412,37925.0,37921.0,0.02051769]
[1646624603346,0.21482412,37925.0,37921.0,0.02051769]
[1646624603848,0.15968723,37920.0,37917.0,0.21753593]
[1646624604049,0.15968723,37920.0,37917.0,0.05]
[1646624604252,0.15968723,37920.0,37915.0,0.02051769]
[1646624604852,0.15968723,37920.0,37913.0,0.20390731]
[1646624605051,0.15968723,37920.0,37913.0,0.02070731]
[1646624605852,0.15968723,37920.0,37913.0,0.02051769]
[1646624606056,0.28286841,37919.0,37913.0,0.02051769]
[1646624606451,0.16268723,37920.0,37913.0,0.02051769]
[1646624607298,0.15968723,37920.0,37913.0,0.02051769]
[1646624608098,0.19857926,37920.0,37913.0,0.02051769]
[1646624608300,0.15968723,37920.0,37913.0,0.02051769]
[1646624610301,0.15968723,37920.0,37913.0,0.08648869]
[1646624610606,0.01318,37922.0,37915.0,0.2136644]
[1646624610848,0.01318,37922.0,37915.0,0.3955864]
[1646624611052,0.10010742,37925.0,37917.0,0.416606]
[1646624611053,0.1,37925.0,37917.0,0.416606]
[1646624611251,0.1,37925.0,37924.0,0.02051769]
[1646624611647,0.1,37925.0,37924.0,0.07051769]
[1646624612049,0.105,37925.0,37924.0,0.07051769]
[1646624612248,0.105,37925.0,37924.0,0.05]
[1646624612747,0.005,37925.0,37920.0,0.02051769]
[1646624613254,0.17397535,37929.0,37920.0,0.02051769]
[1646624614148,0.27397535,37929.0,37920.0,0.02051769]
[1646624615101,0.110564,37929.0,37924.0,0.17044545]
[1646624615300,0.110564,37929.0,37924.0,0.19096314]
[1646624615301,0.010564,37929.0,37924.0,0.19096314]
[1646624615497,0.010564,37929.0,37924.0,0.24096314]
[1646624615706,0.00010072,37925.0,37924.0,0.24116269]
[1646624616098,0.00010072,37925.0,37924.0,0.07071724]
[1646624617999,0.00010072,37925.0,37924.0,0.05019955]
[1646624618199,0.00010072,37925.0,37924.0,0.00019955]
[1646624620249,0.00510072,37925.0,37924.0,0.00019955]
[1646624621052,0.00510072,37925.0,37923.0,0.02071724]
[1646624621450,0.00010072,37925.0,37923.0,0.02071724]
[1646624622099,0.00510072,37925.0,37923.0,0.02071724]
[1646624623200,0.010564,37929.0,37925.0,0.00982752]
[1646624623800,0.010564,37929.0,37925.0,0.23144124]
[1646624624000,0.014564,37929.0,37925.0,0.23144124]
[1646624624599,0.014564,37929.0,37928.0,0.19562485]
[1646624625201,0.010564,37929.0,37928.0,0.19562485]
[1646624625401,0.010564,37929.0,37925.0,0.23144124]
[1646624626048,0.015564,37929.0,37925.0,0.23144124]
[1646624626449,0.015564,37929.0,37928.0,0.18701831]
[1646624626849,0.015564,37929.0,37928.0,0.207536]
[1646624627250,0.010564,37929.0,37928.0,0.207536]
[1646624627451,0.010564,37929.0,37928.0,0.41517441]
[1646624627852,0.010564,37929.0,37928.0,0.46517441]
[1646624628051,0.010564,37929.0,37928.0,0.49170441]
[1646624628256,0.010564,37929.0,37928.0,0.79170441]
[1646624628655,0.010564,37929.0,37928.0,0.84460441]
[1646624628858,0.0022,37941.0,37929.0,1.17653]
[1646624629053,0.0022,37941.0,37933.0,0.2052315]
[1646624629254,0.0022,37941.0,37936.0,0.16325893]
[1646624629697,0.0022,37941.0,37936.0,0.21325893]
[1646624629897,0.012761,37941.0,37936.0,0.21325893]
[1646624630097,0.0022,37941.0,37938.0,0.02051769]
[1646624630303,0.0022,37941.0,37940.0,0.02051769]
[1646624631402,0.0005,37942.0,37940.0,0.02051769]
[1646624631998,0.0005,37942.0,37940.0,0.22820037]
[1646624632200,0.0005,37942.0,37940.0,0.27820037]
[1646624633652,0.01106,37942.0,37940.0,0.27820037]
[1646624633868,0.01106,37942.0,37940.0,0.34411637]
[1646624634062,0.0055,37942.0,37940.0,0.27820037]
[1646624634854,0.0055,37942.0,37941.0,0.3]
[1646624635255,0.0005,37942.0,37941.0,0.3]
[1646624635556,0.30743257,37953.0,37945.0,0.2052957]
[1646624635755,0.00020019,37947.0,37945.0,0.2052957]
[1646624636355,0.00020019,37947.0,37945.0,0.22581339]
[1646624636757,0.18587365,37952.0,37945.0,0.22581339]
[1646624636758,0.18587365,37952.0,37945.0,0.02051769]
[1646624637698,0.19643265,37952.0,37944.0,0.18254667]
[1646624637899,0.18587365,37952.0,37944.0,0.18254667]
[1646624638097,0.18887365,37952.0,37945.0,0.02051769]
[1646624638499,0.18887365,37952.0,37944.0,0.23254667]
[1646624638801,0.003,37952.0,37945.0,0.02051769]
[1646624639398,0.00021995,37951.0,37945.0,0.02051769]
[1646624639598,0.00021995,37951.0,37944.0,0.20306436]
[1646624640200,0.00421995,37951.0,37948.0,0.17259745]
[1646624640499,0.004,37951.0,37948.0,0.17259745]
[1646624640699,0.00421995,37951.0,37948.0,0.17259745]
[1646624641560,0.004,37951.0,37945.0,0.065914]
[1646624641767,0.004,37951.0,37948.0,0.02051769]
[1646624641960,0.00021996,37951.0,37948.0,0.3]
[1646624642160,0.00521996,37951.0,37947.0,0.181809]
[1646624642361,0.00521996,37951.0,37949.0,0.02051769]
[1646624642765,0.005,37951.0,37950.0,0.16528283]
[1646624643165,0.005,37951.0,37950.0,0.05]
[1646624643368,0.00021187,37952.0,37950.0,0.05]
[1646624643566,0.00021187,37952.0,37945.0,0.243114]
[1646624643765,0.00021187,37952.0,37946.0,0.02051769]
[1646624643968,0.3044,37954.0,37945.0,0.293114]
[1646624644272,0.19797613,37950.0,37945.0,0.2272]
[1646624644466,0.3,37949.0,37945.0,0.2272]
[1646624644701,0.3,37949.0,37944.0,0.05]
[1646624645906,0.010559,37949.0,37944.0,0.05]
[1646624646104,0.315559,37949.0,37944.0,0.05]
[1646624646304,0.305,37949.0,37944.0,0.05]
[1646624647304,0.3,37949.0,37944.0,0.05]
[1646624648105,0.305,37949.0,37944.0,0.05]
[1646624648767,0.305,37949.0,37943.0,0.42]
[1646624648970,0.305,37949.0,37944.0,0.05]
[1646624649169,0.27932653,37948.0,37944.0,0.05]
[1646624649476,0.4,37947.0,37943.0,9.967e-05]
[1646624649670,0.21808032,37944.0,37943.0,9.967e-05]
[1646624650068,0.31808032,37944.0,37937.0,0.3]
[1646624650267,0.31808032,37944.0,37936.0,2.32565486]
[1646624650468,0.1,37943.0,37936.0,2.59146584]
[1646624651369,0.1,37943.0,37938.0,9.832e-05]
[1646624652403,0.1,37943.0,37936.0,0.47150939]
[1646624652602,0.1,37943.0,37939.0,9.832e-05]
[1646624653603,0.1,37943.0,37936.0,0.20569841]
[1646624653806,0.110561,37943.0,37939.0,9.862e-05]
[1646624654204,0.1,37943.0,37939.0,9.862e-05]
[1646624654807,0.1,37943.0,37936.0,0.20569841]
[1646624655003,0.1,37943.0,37939.0,9.862e-05]
[1646624656056,0.1,37943.0,37938.0,0.00043613]
[1646624656254,0.105,37943.0,37939.0,9.862e-05]
[1646624657256,0.105,37943.0,37938.0,0.00043613]
[1646624657454,0.1,37943.0,37939.0,9.855e-05]
[1646624657854,0.110561,37943.0,37939.0,1.97e-05]
[1646624658054,0.106,37943.0,37939.0,1.97e-05]
[1646624658454,0.106,37943.0,37938.0,0.00043613]
[1646624659061,0.16936429,37942.0,37938.0,0.00043613]
[1646624659456,0.1,37939.0,37938.0,0.00043613]
[1646624659700,0.1529,37939.0,37938.0,0.00043613]
[1646624660098,0.1559,37939.0,37938.0,0.00043613]
[1646624660900,0.06595074,37938.0,37929.0,0.3]
[1646624661100,0.20007792,37932.0,37928.0,0.28004326]
[1646624661300,0.18610771,37935.0,37932.0,0.37330881]
[1646624662102,0.19010771,37935.0,37932.0,0.37330881]
[1646624662301,0.19010771,37935.0,37932.0,0.37342938]
[1646624663350,0.18610771,37935.0,37932.0,0.37330881]
[1646624663550,0.18610771,37935.0,37932.0,0.37342938]
[1646624663952,0.05607745,37934.0,37932.0,0.37342938]
[1646624664453,0.05607745,37934.0,37932.0,0.37330881]
[1646624665056,0.42249734,37934.0,37932.0,0.37330881]
[1646624665255,0.4121,37933.0,37932.0,0.37330881]
[1646624665454,1.2222,37933.0,37932.0,0.37065335]
[1646624665854,1.2222,37933.0,37925.0,0.00982752]
[1646624665855,1.2158836,37932.0,37925.0,0.00982752]
[1646624666245,0.0529,37931.0,37925.0,0.00982752]
[1646624666251,0.1,37929.0,37925.0,0.00982752]
[1646624666459,0.0529,37928.0,37925.0,0.00982752]
[1646624667108,0.0529,37928.0,37925.0,0.00494811]
[1646624668109,0.0559,37928.0,37925.0,0.00482752]
[1646624668306,0.0559,37928.0,37925.0,0.00494811]
[1646624669308,0.0559,37928.0,37925.0,0.00482752]
[1646624669510,0.0529,37928.0,37925.0,0.00494811]
[1646624669709,0.1,37927.0,37925.0,0.00494811]
[1646624669907,0.0529,37928.0,37925.0,0.00494811]
[1646624669908,0.11239661,37926.0,37925.0,0.00494811]
[1646624670608,0.11239661,37926.0,37925.0,0.00482752]
[1646624672050,0.16529661,37926.0,37925.0,0.00482752]
[1646624673251,0.17586261,37926.0,37925.0,0.00482752]
[1646624673451,0.16529661,37926.0,37925.0,0.00482752]
[1646624674251,0.16929661,37926.0,37925.0,0.00482752]
[1646624675511,0.16529661,37926.0,37925.0,0.00482752]
[1646624675710,0.16529661,37926.0,37925.0,0.00504588]
[1646624676512,0.1,37926.0,37925.0,0.00504588]
[1646624676913,0.4726,37933.0,37925.0,0.00504588]
[1646624677113,0.010565,37926.0,37925.0,0.00504588]
[1646624677416,0.1,37933.0,37925.0,0.00504588]
[1646624677614,0.2630589,37933.0,37925.0,0.00504588]
[1646624677813,0.2630589,37933.0,37925.0,0.16621591]
[1646624678453,0.3630589,37933.0,37925.0,0.16621591]
[1646624678753,0.1,37932.0,37925.0,0.16621591]
[1646624678956,0.1,37932.0,37927.0,0.20878058]
[1646624679153,0.1,37932.0,37927.0,0.20887675]
[1646624679954,0.1,37933.0,37927.0,0.20887675]
[1646624680156,0.06887446,37934.0,37928.0,0.3]
[1646624680357,0.06887446,37934.0,37930.0,0.02051769]
[1646624680955,0.24264063,37939.0,37933.0,0.2140755]
[1646624681157,0.010563,37934.0,37933.0,0.49489561]
[1646624681355,0.24264063,37939.0,37933.0,0.49489561]
[1646624681955,0.20343387,37939.0,37933.0,0.49489561]
[1646624682800,0.20343387,37939.0,37934.0,9.893e-05]
[1646624683802,0.20343387,37939.0,37933.0,0.49489561]
[1646624684003,0.20343387,37939.0,37935.0,9.83e-05]
[1646624684903,0.20343387,37939.0,37933.0,0.49489561]
[1646624684904,0.21399587,37939.0,37933.0,0.49489561]